Cogmind - Beta 15 @@@ ROGUE MODE // 2025.07.15 @ 07:33:53 Player: cloodskull Result: Destroyed by G-47 Trooper with Particle Gun Performance ------------- Evolutions (0) 0 Regions Visited (2) 400 Robots Destroyed (10) 50 Value Destroyed (333) 333 Prototype IDs (0) 0 Alien Tech Used (0) 0 Bonus (0) 0 TOTAL SCORE: 783 Bonus ------- None Cogmind --------- Core Integrity 0/250 Matter 300/300 Energy 107/125 System Corruption 0% Temperature Cool (27) Movement Rolling (115) Ox1 Location -10/Mines Parts ------- > --- POWER (1) -------- Light Ion Engine > --- PROPULSION (2) --- Compact Wheel > --- UTILITY (2) ------ Heat Sink Large Storage Unit > --- WEAPON (2) ------- Medium Laser Small Laser > --- INVENTORY (15) --- Ion Engine Light Nuclear Core Light Treads Compact Wheel High-capacity Matter Pod (200) Weapon Shielding Tractor Beam Particle Gun Light Assault Rifle Peak State ------------ > --- POWER ------------ Light Ion Engine > --- PROPULSION ------- Light Treads Wheel > --- UTILITY ---------- Large Storage Unit Weapon Shielding > --- WEAPON ----------- Medium Laser Medium Laser > --- INVENTORY -------- Light Ion Engine Light Treads Compact Wheel Compact Wheel Heat Sink Medium Storage Unit High-capacity Matter Pod Tractor Beam Small Laser Light Assault Rifle [Rating: 8] Favorites ----------- Power Light Ion Engine Engine Light Ion Engine Propulsion Light Treads Treads Light Treads Wheel Wheel Utility Large Storage Unit Device Heat Sink Storage Large Storage Unit Protection Weapon Shielding Weapon Medium Laser Energy Gun Medium Laser Build | -11 -10 -10 ------- Run | Yrd Mat Min Slots Evolved . | . . . Power . | . . . Propulsion . | . . . Utility . | . . . Weapon . | . . . Parts Attached 13 | 6 4 3 Power 2 | 1 . 1 Engine 2 | 1 . 1 Core . | . . . Reactor . | . . . Propulsion 3 | 2 . 1 Treads 1 | 1 . . Leg . | . . . Wheel 2 | 1 . 1 Hover . | . . . Flight . | . . . Utility 5 | 1 4 . Device 1 | . 1 . Storage 3 | 1 2 . Processor . | . . . Hackware . | . . . Protection 1 | . 1 . Artifact . | . . . Weapon 3 | 2 . 1 Energy Gun 3 | 2 . 1 Energy Cannon . | . . . Ballistic Gun . | . . . Ballistic Cannon . | . . . Launcher . | . . . Special Weapon . | . . . Impact Weapon . | . . . Slashing Weapon . | . . . Piercing Weapon . | . . . Special Melee Weapon . | . . . Unidentified Prototypes . | . . . Parts Lost 4 | . . 4 Power 1 | . . 1 Propulsion 2 | . . 2 Utility . | . . . Weapon 1 | . . 1 Highest Loss Streak 2 | . . 2 To Critical Strikes . | . . . Average Backups 7 | 1 7 8 Power 1 | . 1 1 Propulsion 2 | . 2 2 Utility 2 | . 1 3 Weapon 1 | . 1 1 Tool/Special . | . . . Unused Backups 8 | . . 8 Power 2 | . . 2 Propulsion 2 | . . 2 Utility 2 | . . 2 Weapon 2 | . . 2 Tool/Special . | . . . Average Slot Usage (%) 94 | . 96 87 Engine 13 | . 14 12 Treads 11 | . 14 4 Wheel 14 | . 14 14 Device 5 | . 2 14 Storage 14 | . 14 14 Protection 6 | . 8 . Energy Gun 28 | . 28 28 Peak Build Rating 8 | 6 8 7 Average Rating 6 | 4 6 6 On Entrance 4 | . 6 7 Naked Turns . | . . . Heaviest Build 28 | 12 28 28 Greatest Support 20 | 20 10 16 Greatest Overweight (x) 2 | 1 2 1 Average Overweight (x) 1 | . 1 1 Largest Inventory Capacity 15 | 8 15 15 Average Capacity 11 | 6 11 15 Most Carried 10 | 4 10 9 Average Carried 7 | 1 7 8 Final Capacity 15 | 8 15 15 Final Carried 9 | 4 9 9 Class Distribution -------------------- 100% | Mutant Dominant Class ---------------- Mutant | -10/Materials Mutant | -10/Mines Resources | -11 -10 -10 ----------- Run | Yrd Mat Min Matter Collected 512 | 201 296 15 Remotely . | . . . Salvage Created 422 | . 263 159 Parts 15 | . 7 8 Haulers Intercepted . | . . . Recyclers Shooed . | . . . Parts Field Recycled . | . . . Retrieved Matter . | . . . Parts Self-Destructed . | . . . Prevented . | . . . Kills | -11 -10 -10 ------- Run | Yrd Mat Min Combat Hostiles Destroyed 8 | . 4 4 Guns 8 | . 4 4 Classes Destroyed 3 | . 3 . Recycler 1 | . 1 . Watcher 1 | . 1 . Grunt 8 | . 4 4 Best Kill Streak 3 | . 2 3 Combat Bots Only 3 | . 2 3 Max Kills in Single Turn 1 | . 1 1 Gunslinging . | . . . Exploded . | . . . Melee . | . . . Uniques/NPCs Destroyed . | . . . Combat | -11 -10 -10 -------- Run | Yrd Mat Min Hostile Shots Fired 68 | . 32 36 Missed 22 | . 11 11 Hits 46 | . 21 25 Projectile 46 | . 21 25 AOE 3 | . . 3 Critical Strikes 2 | . 1 1 Damage Taken 716 | . 268 448 Core 261 | . 39 222 Absorbed by Shields . | . . . Redirected to Shielding 7 | . 7 . Core Remaining (%) 100 | 100 . . Volleys Fired 40 | . 22 18 Largest 2 | . 2 2 Hottest 100 | . 100 100 Shots Fired 80 | . 44 36 Gun 80 | . 44 36 Cannon . | . . . Launcher . | . . . Special . | . . . Kinetic . | . . . Thermal 80 | . 44 36 Explosive . | . . . Electromagnetic . | . . . Robot Hit Streak 8 | . 8 5 Robot Miss Streak 3 | . 3 3 Penetration Max . | . . . Secondary Targets 2 | . . 2 Max Gunslinging Chain 1 | . . 1 Shots Hit Robots 49 | . 28 21 Core Hits 25 | . 14 11 Critical Kills . | . . . Critical Parts Destroyed . | . . . Critical Strikes 4 | . 4 . Burn 4 | . 4 . Melee Attacks . | . . . Impact . | . . . Slashing . | . . . Piercing . | . . . Sneak Attacks . | . . . Combat Hostiles . | . . . Follow-up Attacks . | . . . Damage Inflicted 646 | . 358 288 Guns 630 | . 356 274 Cannons . | . . . Explosions . | . . . Melee . | . . . Ramming 16 | . 2 14 Kinetic . | . . . Thermal 630 | . 356 274 Explosive . | . . . Electromagnetic . | . . . Impact . | . . . Slashing . | . . . Piercing . | . . . Highest Corruption . | . . . Average Corruption . | . . . Corruption Purged . | . . . Corruption Blocked . | . . . Overload Shots . | . . . Overflow Damage . | . . . Projectiles . | . . . Explosions . | . . . Melee . | . . . Knockbacks 1 | . . 1 Impact 1 | . . 1 Kinetic . | . . . Secondary . | . . . Self-Inflicted Damage 7 | . . 7 Shots . | . . . Rammed 4 | . 2 2 Targets Rammed 4 | . 2 2 Kicked . | . . . Crushed . | . . . Highest Temperature 381 | . 381 87 Average Temperature 125 | . 173 40 Received Heat Transfer 375 | . 171 204 Effects 1 | . 1 . Energy Bleed 1 | . 1 . Siege Activations . | . . . Martial Activations . | . . . Shielding Activations . | . . . Robots Disrupted . | . . . Combat Hostiles . | . . . Robots Corrupted . | . . . Combat Hostiles . | . . . Parts Fried . | . . . Impact Corruptions . | . . . Robots Melted . | . . . Combat Hostiles . | . . . Parts Melted 6 | . 2 4 Heat Transferred 2122 | . 1332 790 Parts Sabotaged . | . . . Parts Stolen . | . . . Parts Stripped . | . . . Power Chain Reactions . | . . . Alert | -11 -10 -10 ------- Run | Yrd Mat Min Maximum Alert Level . | . . . Low Security (%) 100 | 100 100 100 Level 1 . | . . . Level 2 . | . . . Level 3 . | . . . Level 4 . | . . . Level 5 . | . . . High Security . | . . . Max Security . | . . . Peak Influence 87 | . 87 64 Initial 24 | . . 24 Average 18 | . 15 32 Influence Increases 246 | . 146 100 Destroy 0b10 Robot/C 160 | . 80 80 Destroy 0b10 Robot/NC 10 | . 10 . Destroy Leader 32 | . 12 20 Successful Hack 14 | . 14 . Lose Combat Pursuer 30 | . 30 . Influence Decreases 232 | . 84 148 Entered New Map 38 | . . 38 Time Decay 154 | . 84 70 Lost Part 40 | . . 40 Squads Dispatched 1 | . 1 . Investigation . | . . . Extermination . | . . . Reinforcement 1 | . 1 . Assault . | . . . Garrison . | . . . Intercept . | . . . Searches Triggered . | . . . Construction Impeded . | . . . Haulers Reinforced . | . . . Active Scanning Responses . | . . . Cargo Convoy Interrupts . | . . . Stealth | -11 -10 -10 --------- Run | Yrd Mat Min Distress Signals 1 | . 1 . Communications Jammed . | . . . Distress Signals . | . . . Times Spotted 16 | . 9 7 Peak Tracking Total 5 | . 5 4 Tactical Retreats 1 | . 1 . Traps | -11 -10 -10 ------- Run | Yrd Mat Min Traps Triggered . | . . . Indirectly . | . . . Trap Hack Attempts . | . . . Triggered . | . . . Disarmed . | . . . Reprogrammed . | . . . Reused . | . . . Traps Extracted . | . . . Installed . | . . . Triggered . | . . . Machines | -11 -10 -10 ---------- Run | Yrd Mat Min Machines Disabled . | . . . Max in Single Turn . | . . . Machines Repaired . | . . . Machines Dismantled . | . . . Machines Sabotaged . | . . . Overloaded Fab Kills . | . . . Hacking | -11 -10 -10 --------- Run | Yrd Mat Min Machines Accessed 2 | . 2 . Terminals 2 | . 2 . Fabricators . | . . . Repair Stations . | . . . Recycling Units . | . . . Scanalyzers . | . . . Garrison Access . | . . . Total Hacks 3 | . 3 . Successful 1 | . 1 . Failed 2 | . 2 . Catastrophic . | . . . Database Lockouts . | . . . Manual . | . . . Terminals 3 | . 3 . Fabricators . | . . . Repair Stations . | . . . Recycling Units . | . . . Scanalyzers . | . . . Garrison Access . | . . . Terminal Hacks 1 | . 1 . Locate Traps 1 | . 1 . Fabricator Hacks . | . . . Repair Station Hacks . | . . . Recycling Unit Hacks . | . . . Scanalyzer . | . . . Garrison Access Hacks . | . . . Unauthorized Hacks . | . . . Terminals . | . . . Fabricators . | . . . Repair Stations . | . . . Recycling Units . | . . . Scanalyzers . | . . . Garrison Access . | . . . Data Cores Recovered . | . . . Used . | . . . Hacking Detections 2 | . 2 . Full Trace Events . | . . . Feedback Events . | . . . Feedback Blocked . | . . . Robot Schematics Acquired . | . . . Robots Built . | . . . Authchips . | . . . Time . | . . . Total Robot Build Rating . | . . . Part Schematics Acquired . | . . . Parts Built . | . . . Authchips . | . . . Time . | . . . Total Part Build Rating . | . . . Parts Repaired . | . . . Time . | . . . Parts Recycled . | . . . Recycled Matter . | . . . Retrieved Matter . | . . . Retrieved Components . | . . . Parts Scanalyzed . | . . . Part Schematics Acquired . | . . . Parts Damaged . | . . . Bothacking | -11 -10 -10 ------------ Run | Yrd Mat Min Used RIF Installer . | . . . Robots Hacked . | . . . Non-combat . | . . . Combat . | . . . Robot Hacks Applied . | . . . Relay Couplers Released . | . . . Fabnet Peak Effective % . | . . . Robots Rewired . | . . . Allies Hacked . | . . . Hacks Repelled . | . . . Allies | -11 -10 -10 -------- Run | Yrd Mat Min Total Allies . | . . . Largest Group . | . . . Highest-Rated Group . | . . . Highest-Rated Ally . | . . . Total Orders . | . . . Ally Attacks . | . . . Total Damage . | . . . Kills . | . . . Allies Corrupted . | . . . Allies Melted . | . . . Intel | -11 -10 -10 ------- Run | Yrd Mat Min Active Infowar (turns) . | . . . Robot Analysis Total . | . . . Derelict Logs Recovered . | . . . Drone Launches . | . . . Drone Recoveries . | . . . Exploration | -11 -10 -10 ------------- Run | Yrd Mat Min Turns Passed 588 | 50 380 158 Spaces Moved 362 | 40 237 85 Core 4 | 4 . . Treads 3 | 3 . . Legs . | . . . Wheels 355 | 33 237 85 Hover . | . . . Flight . | . . . Fastest Speed 50 | 50 95 115 Average Speed 101 | 91 98 115 Slowest Speed 160 | 160 110 115 Overloaded Moves . | . . . Propulsion Burnouts . | . . . Robots Hopped . | . . . Potential Cave-ins . | . . . Cave-ins Triggered . | . . . Exploration Rate (%) 25 | 3 44 28 Regions Visited 2 Branch Regions 1 Pre-discovered Areas . | . . . Known Exits Taken . | . . . Unknown Exits Taken 2 | 1 1 . Scrap Searched . | . . . Spaces Dug . | . . . Terrain Destroyed . | . . . Melee . | . . . Projectile . | . . . AOE . | . . . Terrain Rammed . | . . . Walls Destroyed . | . . . Machines Disabled . | . . . Actions | -11 -10 -10 --------- Run | Yrd Mat Min Total 500 | 50 339 111 Wait 68 | . 68 . Move 360 | 39 236 85 Hop . | . . . Pick Up 13 | 5 5 3 Fast Attach 6 | 5 1 . Attach 4 | 1 . 3 Detach . | . . . Swap 3 | . 3 . Drop 2 | . 2 . Fire 40 | . 22 18 Melee . | . . . Ram 4 | . 2 2 Kick . | . . . Crush . | . . . Escape Stasis . | . . . Rewire . | . . . Trap . | . . . Miscellaneous . | . . . Route ------- -11/Scrapyard -10/Materials (discovered 2 exits: [*Mat] / [*Min]) -10/Mines History --------- Turn | Location | Event 27 | -11/Scrapyard | Discovered new exit (range 15) 51 | -11/Scrapyard | Entered Materials 280 | -10/Materials | Discovered new exit (range 6) 308 | -10/Materials | Build established: Mutant 418 | -10/Materials | Discovered new exit (range 9) 431 | -10/Materials | Entered Mines 450 | -10/Mines | Met a Derelict bent on vengeance 454 | -10/Mines | Core integrity fell below 50% 545 | -10/Mines | Assembled infested the area 550 | -10/Mines | Assisted by a Guerilla fighting off Assembled 576 | -10/Mines | Core integrity fell below 20% 589 | -10/Mines | Destroyed by G-47 Trooper with Particle Gun Last Messages --------------- 00572_ D-53 Grenadier suffers critical hit (Destroy). 00573_ The unstable cave ceiling collapses. 00574_ D-53 Grenadier suffers critical hit (Destroy). 00575_ U-05 Engineer destroyed. 00577_ The unstable cave ceiling collapses. 00579_ U-05 Engineer destroyed. 00580_ HV Slug penetrates D-53 Grenadier. 00581_ The unstable cave ceiling collapses. 00581_ OF-ZRX(h) destroyed. 00583_ The unstable cave ceiling collapses. 00584_ Slammed into G-47 Trooper. 00584_ G-47 Trooper knocked back. 00585_ The unstable cave ceiling collapses. 00585_ Slammed into G-47 Trooper. 00586_ R-06 Scavenger collects Sml. Storage Unit. 00588_ The unstable cave ceiling collapses. 00589_ Critical hit (Burn: +37). Map ----- +----------------------------------------------------+ | ?????????????????????????????????????????????????? | | ?????????????????????????????????????????????????? | | ?????????????????????????????????????????????????? | | ?????????????????????????????????????????????????? | | ?????????????????????????????????????????????????? | | ?????????????????????????????????????????????????? | | ?????????????????????????????????????????????????? | | ?????????????????????????????????????????????????? | | ?????????????????????????????????????????????????? | | ?????????????????????????????????????????????????? | | ???????????? #?????????##???????????????????????? | | ????????? ###?????# #??????????????????????? | | ?????????? "% ???? #?????????????????????? | | ????????? %%" ??? ?????????????????????? | | ?????????? " #??? ?????????????????????? | | ??????????? #### ?????????????????????? | | ???????????#" ? ? ??????????????????????? | | ??????????## # ? ? ??????????????????????? | | ??????????# ## #?# ??????????????????????? | | ???????#### # #?# ??????????????????????? | | ????#### ## ?? ??????????????????????? | | ????? #?? ??????????????????????? | | ???????? * #?? #??????????????????????? | | ???????????# ! #??# #??????????????????????? | | ????????????# % #### #### #?????????????????? | | ????????????# %%g@ #?????????????????? | | ?????????#### ### ########?????????????????? | | ?????????# ####### #????????????????????????? | | ??###????# #?????# ????????????????????????? | | ?? #????# #####?????####???????????????????????? | | ??# #????# #????????????????????????????????????? | | ??# #??### ##########???????????????????????????? | | ??# #??# #???????????????????????????? | | ### #### """ """ """ #???????????????????????????? | | """ """ """ #???????????????????????????? | | # ###### """ """ """ #???????????????????????????? | | # #????# #???????????????????????????? | | # ##???# """ """ """ #???????????????????????????? | | ##??# """ """ """ #???????????????????????????? | | ##?# """ """ """ #???????????????????????????? | | #?# #???????????????????????????? | | #?# """ """ """ #???????????????????????????? | | ##?# """ """ """ #???????????????????????????? | | ##?# """ """ """ #???????????????????????????? | | #?# ? ? ???????????????????????????????? | | #?# ? ? ???????????????????????????????? | | ##??##?###?###???????????????????????????????? | | #????????????????????????????????????????????? | | #####????????????????????????????????????????????? | | ?????????????????????????????????????????????????? | +----------------------------------------------------+ Best States ------------- Heat Dissipation 35 Energy Generation 10 Energy Capacity 125 Matter Stores 300 Matter Capacity 300 Sight Range 16 Terrain Scan Density 10 Weapon Shielding 33 Evasion (%) 44 Recoil Reduction 1 Item Schematics ----------------- None Robot Schematics ------------------ None Fabricated ------------ Nothing Repaired ---------- Nothing Alien Tech Used ----------------- None Achievements -------------- None Challenges ------------ None Game ------ Seed LauncherStealthSystem Manual? 0 Play Time 00:09:21 Cumulative 8.7 hours Start 2025.07.15 @ 07:26:46 End 2025.07.15 @ 07:33:53 Sessions 1 Manual Loads 0 Difficulty Rogue Special Mode None Game No. 9 Rogue 9 Adventurer 0 Explorer 0 Win Type - Total 0 Types 0/0/0/0/0/0/0/0/0/0 Lore% 3 Gallery% 14 Achievement% 15 Wizard Run 0 Options --------- Layout 1 ASCII 0 Keyboard 0 Movement Numpad Keybinds 0 Fullscreen 1 Font 24/X11 Map View 50x35 Zoom Use 0% Tactical HUD 1 Map Filters NONE Filters NONE Steam 1 RUN: b4d26e40-75f3-4ce1-889a-08df02a21d6c